[Event "1st 4NCL International U2050"]
[Site "Telford"]
[Date "2018.10.31"]
[Round "1"]
[White "Murphy, Ross"]
[Black "Ali, Golam S"]
[Result "1-0"]
[ECO "D02"]
[WhiteElo "1652"]
[BlackElo "1859"]
[Annotator "NA RC"]
[PlyCount "93"]
[EventDate "2018.10.31"]
[EventType "swiss"]
[EventCountry "GBR"]
[SourceTitle "playchess.com"]
[Source "ChessBase"]
[SourceQuality "1"]
[TimeControl "5400+30"]

1. Nf3 {[%emt 0:00:00]} c5 {[%emt 0:00:00]} 2. g3 {[%emt 0:00:00]} Nc6 {[%emt 0:00:09]} 3. d4 {[%emt 0:00:00]} d5 {[%emt 0:01:25]} 4. Bg2 {[%emt 0:00:17]} cxd4 {[%emt 0:00:54]} 5. Nxd4 {[%emt 0:00:05]} e5 {[%emt 0:00:43]} 6. Nxc6 {[%emt 0:00:04]} bxc6 {[%emt 0:00:06]} 7. O-O {[%emt 0:00:19]} Bc5 {[%emt 0:01:49]} 8. c4 {[%emt 0:02:52]} e4 {[%emt 0:02:39]} 9. cxd5 {[%emt 0:00:58]} cxd5 {[%emt 0:00:40]} 10. Qc2 {[%emt 0:01:24]} Qe7 $18 {[%emt 0:02:22]} (10... Qb6 $16) 11. Nc3 {[%emt 0:03:14]} Bb7 {[%emt 0:06:26]} 12. Qa4+ {[%emt 0:02:33]} Kf8 {[%emt 0:02:01]} 13. Bf4 {[%emt 0:03:25]} g5 {[%emt 0:03:24]} 14. Be3 {[%emt 0:04:17]} Nh6 {[%emt 0:13:42]} 15. Bxc5 {[%emt 0:01:01]} Qxc5 {[%emt 0:00:06]} 16. Rac1 {[%emt 0:00:25]} Qb6 {[%emt 0:23:29]} 17. Qa3+ {[%emt 0:01:01]} Ke8 {[%emt 0:00:53]} 18. Na4 {[%emt 0:10:01]} Qd8 {[%emt 0:10:20]} 19. Qc3 {[%emt 0:04:33]} f6 {[%emt 0:01:04]} 20. Qb4 {[%emt 0:08:44]} Rb8 {[%emt 0:01:47]} 21. Qd4 {[%emt 0:01:41]} Ng4 {[%emt 0:06:15]} 22. Qxa7 {[%emt 0:00:56]} Ne5 {[%emt 0:03:10]} 23. Nc5 {[%emt 0:03:20]} Nc6 {[%emt 0:03:21]} 24. Qa4 {[%emt 0:01:23]} Ra8 {[%emt 0:01:03]} 25. Qb3 {[%emt 0:01:03]} Na5 {[%emt 0:02:55]} 26. Qd1 {[%emt 0:08:43]} Bc8 {[%emt 0:01:48]} 27. Qd4 {[%emt 0:05:51]} Nc6 {[%emt 0:01:44]} 28. Qc3 {[%emt 0:00:30]} Rxa2 {[%emt 0:01:50]} 29. Nxe4 {[%emt 0:01:08]} dxe4 {[%emt 0:03:34]} 30. Qxc6+ {[%emt 0:00:12]} Kf7 {[%emt 0:04:05]} 31. Rfd1 {[%emt 0:04:01]} Qe7 {[%emt 0:00:48]} 32. Qb6 {[%emt 0:01:54]} Ra6 {[%emt 0:00:46]} 33. Qb5 {[%emt 0:01:42]} Rd6 {[%emt 0:00:33]} 34. Rxd6 {[%emt 0:00:51]} Qxd6 {[%emt 0:00:07]} 35. Bxe4 {[%emt 0:00:55]} Be6 {[%emt 0:00:24]} 36. Qb7+ {[%emt 0:00:36]} Bd7 {[%emt 0:00:23]} 37. Rc7 {[%emt 0:02:27]} Rd8 {[%emt 0:00:33]} 38. Bf5 {[%emt 0:02:04]} Qd1+ {[%emt 0:00:20]} 39. Kg2 {[%emt 0:00:10]} Ke8 {[%emt 0:01:02]} 40. Bxd7+ {[%emt 0:00:29]} Rxd7 {[%emt 0:00:09]} 41. Rxd7 {[%emt 0:00:16]} Qd4 42. Rd6 Qxd6 43. Qd7+ {[%emt 0:01:01] Qd1 Qb7} Qxd7 {[%emt 0:01:06] Qxd7+ [%clk 00:25:29] [%emt 00:00:06] Kxd7 [%clk 00:02:00] [%emt 00:00:05]} 44. Kf3 {[%emt 0:00:00]} f5 {[%emt 0:00:00]} 45. Ke3 {[%emt 0:00:00] Kc6 [%clk 00:02:48] [%emt 00:00:07] Kd4 [%clk 00:26:32] [%emt 00:00:12] Kd6 [%clk 00:03:01] [%emt 00:00:17] f3 [%clk 00:26:41] [%emt 00:00:20]} h5 {[%emt 0:00:00] e4 [%clk 00:26:57] [%emt 00:00:14]} 46. g4 {[%emt 0:23:37]} fxg4 {[%emt 0:00:00] fxg4 [%clk 00:02:43] [%emt 00:00:44]} 47. b4 {[%emt 0:00:00]} 1-0

[Event "1st 4NCL International U2050"]
[Site "Telford"]
[Date "2018.10.31"]
[Round "1"]
[White "Chung, Ethan Cj"]
[Black "Walley, A Clive"]
[Result "1-0"]
[ECO "B22"]
[WhiteElo "1577"]
[BlackElo "1846"]
[Annotator "NA RC"]
[PlyCount "79"]
[EventDate "2018.10.31"]
[EventType "swiss"]
[EventCountry "GBR"]
[SourceTitle "playchess.com"]
[Source "ChessBase"]
[SourceQuality "1"]
[TimeControl "5400+30"]

1. e4 {[%emt 0:00:00]} c5 {[%emt 0:00:00]} 2. d4 {[%emt 0:00:00]} cxd4 {[%emt 0:00:00]} 3. c3 {[%emt 0:00:00]} Nf6 {[%emt 0:00:00]} 4. e5 {[%emt 0:00:46]} Nd5 {[%emt 0:00:14]} 5. cxd4 {[%emt 0:00:59]} d6 {[%emt 0:00:26]} 6. Bc4 {[%emt 0:01:05]} Nb6 {[%emt 0:01:10]} 7. Bb3 {[%emt 0:03:13]} g6 {[%emt 0:03:43]} 8. Qf3 {[%emt 0:09:59]} d5 {[%emt 0:05:32]} 9. Nc3 {[%emt 0:01:56]} Be6 {[%emt 0:03:03]} 10. Nge2 {[%emt 0:02:38]} Nc6 {[%emt 0:01:29]} 11. Be3 {[%emt 0:02:13]} Na5 {[%emt 0:09:07]} 12. Bc2 {[%emt 0:05:06]} Nac4 {[%emt 0:06:33]} 13. b3 {[%emt 0:00:55]} (13. Nf4 $16) 13... Nxe3 {[%emt 0:01:48]} 14. fxe3 $14 {[%emt 0:00:28]} Qd7 {[%emt 0:10:47]} 15. Bd3 {[%emt 0:01:48]} a6 {[%emt 0:01:21]} 16. O-O {[%emt 0:01:12]} Bg7 {[%emt 0:00:51]} 17. h3 {[%emt 0:02:26]} O-O {[%emt 0:00:28]} 18. Nf4 {[%emt 0:03:50]} Rad8 {[%emt 0:06:23]} 19. Nce2 {[%emt 0:03:27]} Bf5 {[%emt 0:06:07]} 20. Bxf5 {[%emt 0:01:46]} Qxf5 {[%emt 0:00:11]} 21. g4 {[%emt 0:04:09]} Qd7 {[%emt 0:00:46]} 22. Ng3 {[%emt 0:02:04]} e6 {[%emt 0:05:50]} 23. h4 {[%emt 0:06:27]} Rc8 {[%emt 0:04:39]} 24. g5 {[%emt 0:06:15]} Rc2 {[%emt 0:04:27]} 25. h5 {[%emt 0:02:20]} Rfc8 {[%emt 0:02:55]} 26. h6 {[%emt 0:01:59]} Bf8 {[%emt 0:00:50]} 27. Nfh5 {[%emt 0:15:33]} gxh5 {[%emt 0:03:28]} 28. Nxh5 {[%emt 0:00:12]} Qe7 {[%emt 0:04:35]} 29. Nf6+ {[%emt 0:01:49]} Kh8 {[%emt 0:00:07]} 30. Qh5 {[%emt 0:03:22]} R8c7 {[%emt 0:05:30]} 31. Kh1 {[%emt 0:03:12]} Qd8 {[%emt 0:07:44]} 32. Rg1 {[%emt 0:03:22]} Qc8 {[%emt 0:03:26]} 33. Nxh7 {[%emt 0:04:30]} Kxh7 {[%emt 0:00:51]} 34. g6+ {[%emt 0:00:16]} Kg8 {[%emt 0:01:33]} 35. h7+ {[%emt 0:00:09]} Kh8 {[%emt 0:00:14]} 36. Qg5 {[%emt 0:00:51]} Bg7 {[%emt 0:00:31]} 37. Raf1 {[%emt 0:02:00]} fxg6 {[%emt 0:00:26]} 38. Qxg6 {[%emt 0:00:42]} Qd7 {[%emt 0:00:36]} 39. Rf8+ {[%emt 0:00:19]} Bxf8 {[%emt 0:01:07]} 40. Qg8# {[%emt 0:00:36]} 1-0

[Event "1st 4NCL International U2050"]
[Site "Telford"]
[Date "2018.11.01"]
[Round "2"]
[White "Whitehead, Mark A"]
[Black "Chung, Ethan Cj"]
[Result "1/2-1/2"]
[ECO "A00"]
[WhiteElo "1945"]
[BlackElo "1577"]
[Annotator "NA"]
[PlyCount "64"]
[EventDate "2018.10.31"]
[EventType "swiss"]
[EventCountry "GBR"]
[SourceTitle "playchess.com"]
[Source "ChessBase"]
[SourceQuality "1"]
[TimeControl "5400+30"]

1. e4 d5 2. Nc3 d4 3. Nce2 e5 4. Nf3 Bd6 5. Ng3 Nc6 6. Bc4 h6 7. a3 Nf6 8. h3 Qe7 9. d3 Bd7 10. Bd2 O-O-O 11. b4 Nb8 12. Qb1 g6 13. Qb3 Rh7 14. b5 c6 15. a4 Re8 16. Rb1 c5 17. a5 Be6 18. Bxe6+ Qxe6 19. Qxe6+ Rxe6 20. c4 Nbd7 21. O-O Bc7 22. Rfe1 Ne8 23. h4 Nd6 24. h5 g5 25. Nh2 Nf6 26. f3 Nde8 27. Kf2 Ng7 28. Ng4 Nxg4+ 29. fxg4 Re8 30. Nf5 Nxf5 31. gxf5 Bd8 32. g4 f6 1/2-1/2

[Event "1st 4NCL International U2050"]
[Site "Telford"]
[Date "2018.11.01"]
[Round "2"]
[White "Wynarczyk, Raymond"]
[Black "Wiltshir, Rich"]
[Result "1-0"]
[ECO "A00"]
[WhiteElo "1908"]
[BlackElo "1673"]
[Annotator "NA"]
[PlyCount "39"]
[EventDate "2018.10.31"]
[EventType "swiss"]
[EventCountry "GBR"]
[SourceTitle "playchess.com"]
[Source "ChessBase"]
[SourceQuality "1"]
[TimeControl "5400+30"]

1. e4 b6 2. d4 Bb7 3. Bd3 Nf6 4. Nc3 h6 5. Nf3 e6 6. Qe2 Be7 7. O-O O-O 8. e5 Nh7 9. Be4 Bxe4 10. Nxe4 Nc6 11. c4 f6 12. Be3 Qe8 13. Rad1 f5 14. Nc3 g5 15. d5 f4 16. dxc6 fxe3 17. cxd7 exf2+ 18. Rxf2 Qh5 19. Nd4 Qh4 20. Nxe6 1-0

[Event "1st 4NCL International U2050"]
[Site "Telford"]
[Date "2018.11.01"]
[Round "2"]
[White "Gostelow, David W"]
[Black "Murphy, Ross"]
[Result "0-1"]
[ECO "A00"]
[WhiteElo "1892"]
[BlackElo "1652"]
[Annotator "NA"]
[PlyCount "68"]
[EventDate "2018.10.31"]
[EventType "swiss"]
[EventCountry "GBR"]
[SourceTitle "playchess.com"]
[Source "ChessBase"]
[SourceQuality "1"]
[TimeControl "5400+30"]

1. d4 Nf6 2. Bf4 g6 3. Nc3 d5 4. Nf3 Bg7 5. Ne5 c5 6. e3 cxd4 7. exd4 Nc6 8. Be2 O-O 9. Qd2 Bf5 10. O-O-O a5 11. f3 Nb4 12. Nd3 Qb6 13. a3 Nc6 14. Ne5 a4 15. g4 Be6 16. h4 Nd7 17. Nxd7 Bxd7 18. Nb5 Rfc8 19. h5 Ra5 20. hxg6 fxg6 21. Kb1 Rxb5 22. Bxb5 Qxb5 23. Qh2 h5 24. gxh5 Nxd4 25. hxg6 Rxc2 26. Qh7+ Kf8 27. Qxg7+ Kxg7 28. Be5+ Kxg6 29. Rdg1+ Kf7 30. Bxd4 Bf5 31. Ka1 Qc4 32. Be5 d4 33. f4 Rxb2 34. Kxb2 Qb3+ 0-1

[Event "1st 4NCL International U2050"]
[Site "Telford"]
[Date "2018.11.01"]
[Round "2"]
[White "Fallowfield, Nicholas"]
[Black "Gogia, Armaan"]
[Result "1-0"]
[ECO "A00"]
[WhiteElo "1883"]
[BlackElo "1808"]
[Annotator "NA"]
[PlyCount "137"]
[EventDate "2018.10.31"]
[EventType "swiss"]
[EventCountry "GBR"]
[SourceTitle "playchess.com"]
[Source "ChessBase"]
[SourceQuality "1"]
[TimeControl "5400+30"]

1. e4 c5 2. Nf3 d6 3. c3 Nf6 4. Be2 g6 5. O-O Bg7 6. Re1 O-O 7. Bf1 Nc6 8. h3 e5 9. d4 cxd4 10. cxd4 Nh5 11. d5 Ne7 12. Nc3 f5 13. exf5 Nxf5 14. Bg5 Nf6 15. Rc1 a6 16. Qb3 h6 17. Bxf6 Qxf6 18. Ne4 Qd8 19. Qb4 Kh8 20. Rc2 Ne7 21. Qxd6 Bf5 22. Rc7 Nxd5 23. Qxd8 Raxd8 24. Rxb7 Rb8 25. Rxb8 Rxb8 26. b3 Bf8 27. Nfd2 Bb4 28. Rc1 Rd8 29. g4 Nf4 30. gxf5 gxf5 31. Nc4 fxe4 32. Nxe5 Rd5 33. Ng4 Rg5 34. Kh1 h5 35. Nf6 Nd3 36. Rc8+ Kg7 37. Nxe4 Rd5 38. Bxd3 Rxd3 39. Kg2 a5 40. Rc6 Rd5 41. Ra6 Re5 42. f3 Rd5 43. Kf2 Rd3 44. Ke2 Rd5 45. Ke3 Rf5 46. f4 Ba3 47. Rc6 Bb4 48. Ng3 Rd5 49. Ke4 Rb5 50. f5 h4 51. Nh5+ Kf7 52. Rc7+ Kf8 53. Rd7 Bc3 54. Nf4 Rb4+ 55. Kf3 Ke8 56. Rh7 Rb5 57. Kg4 Bf6 58. Ne6 Rb4+ 59. Kh5 Be5 60. Kg6 Rb6 61. Rxh4 Ke7 62. Rh7+ Kd6 63. h4 Rb8 64. Ra7 Bc3 65. h5 Rg8+ 66. Ng7 Rf8 67. Rf7 Rh8 68. h6 Bd2 69. h7 1-0

[Event "1st 4NCL International U2050"]
[Site "Telford"]
[Date "2018.11.01"]
[Round "2"]
[White "Ali, Golam S"]
[Black "Potter, Steven"]
[Result "1-0"]
[ECO "A00"]
[WhiteElo "1859"]
[BlackElo "1771"]
[Annotator "NA"]
[PlyCount "111"]
[EventDate "2018.10.31"]
[EventType "swiss"]
[EventCountry "GBR"]
[SourceTitle "playchess.com"]
[Source "ChessBase"]
[SourceQuality "1"]
[TimeControl "5400+30"]

1. d4 b6 2. c4 e6 3. a3 Bb7 4. Nc3 g6 5. e4 Bg7 6. Nf3 d6 7. Bd3 Nd7 8. O-O Ne7 9. Bg5 O-O 10. Qd2 c5 11. Nb5 Nf6 12. e5 dxe5 13. dxe5 Ng4 14. Be2 f6 15. exf6 Qxd2 16. Nxd2 Nxf6 17. Nc7 Rac8 18. Nxe6 Rfe8 19. Nxg7 Kxg7 20. Bf3 Bxf3 21. Nxf3 h6 22. Bf4 Nc6 23. b4 Re4 24. Be3 cxb4 25. Nd2 Re7 26. Rfe1 bxa3 27. Rxa3 Rce8 28. h3 Kf7 29. Rb1 h5 30. c5 bxc5 31. Nc4 Re6 32. Bxc5 Re1+ 33. Rxe1 Rxe1+ 34. Kh2 Rc1 35. Ra4 Ke6 36. Be3 Rc2 37. Nd2 Nd5 38. Bg5 Kf5 39. h4 Nb6 40. Rf4+ Ke5 41. Nf3+ Kd5 42. Ne1 Re2 43. Nd3 a5 44. Rf6 Re8 45. Rxg6 a4 46. Nf4+ Kc5 47. Ne6+ Kc4 48. Nc7 Rb8 49. Rxc6+ Kb3 50. Na6 Ra8 51. Rxb6+ Kc2 52. Nb4+ Kb3 53. g4 a3 54. gxh5 a2 55. Nxa2+ Kxa2 56. h6 1-0

[Event "1st 4NCL International U2050"]
[Site "Telford"]
[Date "2018.11.01"]
[Round "2"]
[White "Walley, A Clive"]
[Black "Parry, Jacques H"]
[Result "0-1"]
[ECO "A00"]
[WhiteElo "1846"]
[BlackElo "1625"]
[Annotator "NA"]
[PlyCount "84"]
[EventDate "2018.10.31"]
[EventType "swiss"]
[EventCountry "GBR"]
[SourceTitle "playchess.com"]
[Source "ChessBase"]
[SourceQuality "1"]
[TimeControl "5400+30"]

1. e4 e5 2. Nf3 Nc6 3. Bb5 a6 4. Ba4 d6 5. O-O Bd7 6. c3 Nf6 7. Re1 g6 8. h3 Bg7 9. d4 O-O 10. Nbd2 Re8 11. d5 Ne7 12. Bc2 Nh5 13. Nf1 Rf8 14. Kh2 f5 15. exf5 gxf5 16. Ng1 Nf6 17. c4 Ng6 18. Ne2 Ne4 19. Bxe4 fxe4 20. Be3 Nf4 21. Nxf4 exf4 22. Bd4 Bxd4 23. Qxd4 Bf5 24. Nd2 Qh4 25. Nxe4 f3 26. Rg1 Qf4+ 27. Kh1 Bxe4 28. gxf3+ Bg6 29. Qd3 Qxf3+ 30. Qxf3 Rxf3 31. Kg2 Raf8 32. Raf1 Kh8 33. h4 Be4 34. Re1 Rxf2+ 35. Kh3 Bg6 36. Re7 R2f7 37. Rge1 Rxe7 38. Rxe7 Rf7 39. Re8+ Kg7 40. Rb8 b6 41. Rb7 Bb1 42. a3 Ba2 0-1

[Event "1st 4NCL International U2050"]
[Site "Telford"]
[Date "2018.11.01"]
[Round "2"]
[White "Zdanowski, Adrian"]
[Black "Truman, Richard G"]
[Result "1-0"]
[ECO "A00"]
[WhiteElo "1845"]
[BlackElo "1902"]
[Annotator "NA"]
[PlyCount "71"]
[EventDate "2018.10.31"]
[EventType "swiss"]
[EventCountry "GBR"]
[SourceTitle "playchess.com"]
[Source "ChessBase"]
[SourceQuality "1"]
[TimeControl "5400+30"]

1. d4 Nf6 2. Nf3 g6 3. c4 Bg7 4. Nc3 d5 5. cxd5 Nxd5 6. e4 Nxc3 7. bxc3 c5 8. Be3 Qa5 9. Qd2 Nc6 10. Rc1 cxd4 11. Nxd4 O-O 12. Nxc6 bxc6 13. c4 Qa3 14. Be2 Be6 15. O-O Rab8 16. Rb1 f5 17. Qc2 Be5 18. Rfd1 Rxb1 19. Rxb1 Qd6 20. h3 fxe4 21. Rd1 Qc7 22. Qa4 a5 23. Qc2 Rb8 24. Rb1 Kg7 25. g4 Bf7 26. Qxe4 Rxb1+ 27. Qxb1 Bh2+ 28. Kg2 Bf4 29. Qb2+ Be5 30. Qd2 c5 31. a4 Qc6+ 32. Kg1 Qb6 33. Bh6+ Kg8 34. Qd7 Qc7 35. Qb5 Be8 36. Qxe8# 1-0

[Event "1st 4NCL International U2050"]
[Site "Telford"]
[Date "2018.11.01"]
[Round "2"]
[White "Neatherway, A Philip"]
[Black "Ansari, Athar"]
[Result "0-1"]
[ECO "A00"]
[WhiteElo "1813"]
[BlackElo "1888"]
[Annotator "NA"]
[PlyCount "68"]
[EventDate "2018.10.31"]
[EventType "swiss"]
[EventCountry "GBR"]
[SourceTitle "playchess.com"]
[Source "ChessBase"]
[SourceQuality "1"]
[TimeControl "5400+30"]

1. e4 c5 2. Nf3 a6 3. c4 Nc6 4. d4 cxd4 5. Nxd4 e5 6. Nf5 Qc7 7. Nc3 g6 8. Ne3 Bb4 9. Bd2 Nge7 10. Ned5 Nxd5 11. Nxd5 Bxd2+ 12. Qxd2 Qd6 13. c5 Qb8 14. Nf6+ Kd8 15. Bc4 b5 16. Bd5 Bb7 17. Bxf7 Ke7 18. Qxd7+ Kxf6 19. Bd5 Nd8 20. c6 Bc8 21. c7 Bxd7 22. cxb8=Q Rxb8 23. O-O Be6 24. Rad1 Nb7 25. Bxb7 Rxb7 26. Rd6 a5 27. Rfd1 Ke7 28. b3 Rc8 29. Kf1 Rc2 30. R6d2 Rbc7 31. Ke2 a4 32. bxa4 bxa4 33. a3 Rxd2+ 34. Rxd2 Rc3 0-1

[Event "1st 4NCL International U2050"]
[Site "Telford"]
[Date "2018.11.01"]
[Round "2"]
[White "Ward, Andy"]
[Black "De Coverly, Roger D"]
[Result "0-1"]
[ECO "A00"]
[WhiteElo "1790"]
[BlackElo "1946"]
[Annotator "NA"]
[PlyCount "76"]
[EventDate "2018.10.31"]
[EventType "swiss"]
[EventCountry "GBR"]
[SourceTitle "playchess.com"]
[Source "ChessBase"]
[SourceQuality "1"]
[TimeControl "5400+30"]

1. e4 e5 2. Qh5 Nc6 3. Bc4 g6 4. Qf3 Nf6 5. Ne2 Bg7 6. Nbc3 O-O 7. d3 Nd4 8. Nxd4 exd4 9. Ne2 d5 10. Bxd5 Bg4 11. Qg3 Bxe2 12. Kxe2 Nxd5 13. exd5 Qxd5 14. Bd2 Rfe8+ 15. Kd1 c5 16. Re1 Rxe1+ 17. Kxe1 c4 18. Kf1 c3 19. bxc3 dxc3 20. Be3 Be5 21. Qf3 Qxf3 22. gxf3 b5 23. f4 Bf6 24. Rb1 a6 25. Rb3 Rd8 26. Ke2 Rd5 27. Kf3 a5 28. a4 b4 29. Rb1 Kf8 30. Re1 Be7 31. Bb6 Ke8 32. Re5 Rxe5 33. fxe5 b3 34. cxb3 c2 35. Be3 Ba3 36. b4 axb4 37. a5 Kd7 38. a6 Kc8 0-1

[Event "1st 4NCL International U2050"]
[Site "Telford"]
[Date "2018.11.01"]
[Round "2"]
[White "Gorgun, Aliriza Atif"]
[Black "Benson, Paul J"]
[Result "1-0"]
[ECO "A00"]
[WhiteElo "1739"]
[BlackElo "1912"]
[Annotator "NA"]
[PlyCount "69"]
[EventDate "2018.10.31"]
[EventType "swiss"]
[EventCountry "GBR"]
[SourceTitle "playchess.com"]
[Source "ChessBase"]
[SourceQuality "1"]
[TimeControl "5400+30"]

1. e4 c5 2. Nf3 g6 3. d4 cxd4 4. Qxd4 Nf6 5. e5 Nc6 6. Qa4 Nd5 7. Qe4 Nb6 8. Bf4 Bg7 9. Nc3 d5 10. exd6 O-O 11. dxe7 Nxe7 12. Be5 Bxe5 13. Qxe5 Nc6 14. Qg3 Bf5 15. Be2 Bxc2 16. O-O Qb8 17. Qh4 Kg7 18. Rac1 Bf5 19. g4 Be6 20. g5 f5 21. Rfe1 Bf7 22. Bd3 Re8 23. Nd4 Nxd4 24. Qxd4+ Kg8 25. Bb5 Rd8 26. Qh4 Qd6 27. Re3 Qf8 28. Rce1 a6 29. Bf1 Re8 30. Bg2 Rxe3 31. Rxe3 Nc4 32. Rh3 Qg7 33. Nd5 Nxb2 34. Nf6+ Kf8 35. Qb4# 1-0

[Event "1st 4NCL International U2050"]
[Site "Telford"]
[Date "2018.11.01"]
[Round "2"]
[White "Di-Vetta, Andrew"]
[Black "Hughes, Peter"]
[Result "1/2-1/2"]
[ECO "A00"]
[WhiteElo "1681"]
[BlackElo "1874"]
[Annotator "NA"]
[PlyCount "68"]
[EventDate "2018.10.31"]
[EventType "swiss"]
[EventCountry "GBR"]
[SourceTitle "playchess.com"]
[Source "ChessBase"]
[SourceQuality "1"]
[TimeControl "5400+30"]

1. c4 f5 2. d4 Nf6 3. Nf3 g6 4. Nc3 Bg7 5. g3 O-O 6. Bg2 d6 7. O-O Qe8 8. Qb3 h6 9. Nd2 Nc6 10. e3 e5 11. Nb5 Qe7 12. c5+ d5 13. Nc3 e4 14. a3 Kh8 15. Qd1 Be6 16. b4 a6 17. Nb3 g5 18. Bd2 Qf7 19. Na5 Nxa5 20. bxa5 Bd7 21. Rb1 Bc6 22. f3 Qg6 23. fxe4 fxe4 24. Qe2 h5 25. Bh3 g4 26. Bg2 Nh7 27. Rxf8+ Rxf8 28. Rf1 Ng5 29. Rxf8+ Bxf8 30. Qf2 Nf3+ 31. Kh1 Bh6 32. Bc1 Qg5 33. Ne2 Qe7 34. Nf4 Bxf4 1/2-1/2

[Event "1st 4NCL International U2050"]
[Site "Telford"]
[Date "2018.11.01"]
[Round "2"]
[White "Aubury, Ben"]
[Black "Bryant, Richard Be"]
[Result "1/2-1/2"]
[ECO "A00"]
[WhiteElo "1510"]
[BlackElo "1856"]
[Annotator "NA"]
[PlyCount "100"]
[EventDate "2018.10.31"]
[EventType "swiss"]
[EventCountry "GBR"]
[SourceTitle "playchess.com"]
[Source "ChessBase"]
[SourceQuality "1"]
[TimeControl "5400+30"]

1. d4 e6 2. c4 d5 3. Nf3 c6 4. Nc3 dxc4 5. a4 Bb4 6. e3 b5 7. Bd2 a5 8. axb5 Bxc3 9. Bxc3 cxb5 10. b3 Bb7 11. bxc4 b4 12. Bb2 Nf6 13. Bd3 Nbd7 14. O-O O-O 15. Nd2 Qe7 16. f4 Rfd8 17. Bc2 Nf8 18. e4 Ra7 19. e5 N6d7 20. Ne4 Bxe4 21. Bxe4 Nb6 22. d5 Nxc4 23. d6 Nxd6 24. exd6 Rxd6 25. Qe1 Rd8 26. Bc2 Qc5+ 27. Qf2 Qxf2+ 28. Rxf2 Ng6 29. g3 Ne7 30. Ba4 h6 31. Rc1 Nf5 32. Be5 Ne3 33. Re2 Nd5 34. Rd2 Raa8 35. Rcc2 Rdc8 36. Kf2 Nf6 37. Kf3 Nd5 38. f5 Nb6 39. Bc6 b3 40. Rc3 Nd5 41. Bxd5 Rxc3+ 42. Bxc3 exd5 43. Rxd5 a4 44. Rb5 Rc8 45. Be5 f6 46. Bd4 Rc1 47. Rb4 Rf1+ 48. Kg2 Rd1 49. Bc3 Rc1 50. Bd4 Rd1 1/2-1/2

[Event "1st 4NCL International U2050"]
[Site "Telford"]
[Date "2018.11.01"]
[Round "3"]
[White "De Coverly, Roger D"]
[Black "Wynarczyk, Raymond"]
[Result "1/2-1/2"]
[ECO "A00"]
[WhiteElo "1946"]
[BlackElo "1908"]
[Annotator "NA RC"]
[PlyCount "72"]
[EventDate "2018.10.31"]
[EventType "swiss"]
[EventCountry "GBR"]
[SourceTitle "playchess.com"]
[Source "ChessBase"]
[SourceQuality "1"]
[TimeControl "5400+30"]

1. Nf3 d5 2. g3 Nf6 3. Bg2 e6 4. d3 a6 5. Nbd2 Nbd7 6. O-O Be7 7. e4 dxe4 8. dxe4 O-O 9. Qe2 c5 10. b3 Rb8 11. Nc4 b5 12. Nce5 Nxe5 13. Nxe5 Bb7 14. Rd1 Qb6 15. Bb2 Rbd8 16. Ng4 Rxd1+ 17. Rxd1 Rd8 18. Nxf6+ Bxf6 19. Bxf6 Rxd1+ 20. Qxd1 gxf6 21. h4 Qc7 22. h5 h6 23. Qg4+ Kf8 24. Qe2 Qe5 25. c4 b4 26. f4 Qd4+ 27. Kh2 e5 28. fxe5 fxe5 29. Qf3 Qd6 30. Qf5 Kg7 31. g4 Qf6 32. Kg3 Qxf5 33. gxf5 f6 34. Bf3 a5 35. Kf2 Bc6 36. Ke3 Kf7 1/2-1/2

[Event "1st 4NCL International U2050"]
[Site "Telford"]
[Date "2018.11.01"]
[Round "3"]
[White "Benson, Paul J"]
[Black "Di-Vetta, Andrew"]
[Result "0-1"]
[ECO "A00"]
[WhiteElo "1912"]
[BlackElo "1681"]
[Annotator "NA"]
[PlyCount "50"]
[EventDate "2018.10.31"]
[EventType "swiss"]
[EventCountry "GBR"]
[SourceTitle "playchess.com"]
[Source "ChessBase"]
[SourceQuality "1"]
[TimeControl "5400+30"]

1. e4 c5 2. Nf3 d6 3. d4 cxd4 4. Nxd4 Nf6 5. Nc3 a6 6. Be3 e5 7. Nb3 Be6 8. f3 Nbd7 9. Qd2 Qc7 10. O-O-O Rc8 11. Kb1 b5 12. g4 Be7 13. h4 Nb6 14. g5 Nh5 15. Bxb6 Qxb6 16. Bh3 Nf4 17. Nd5 Nxd5 18. exd5 Bxh3 19. Rxh3 b4 20. f4 f6 21. f5 Kd7 22. g6 h6 23. c4 Rxc4 24. Qd3 Rhc8 25. Nd2 Rd4 0-1

[Event "1st 4NCL International U2050"]
[Site "Telford"]
[Date "2018.11.01"]
[Round "3"]
[White "Truman, Richard G"]
[Black "Neatherway, A Philip"]
[Result "1-0"]
[ECO "A00"]
[WhiteElo "1902"]
[BlackElo "1813"]
[Annotator "NA"]
[PlyCount "71"]
[EventDate "2018.10.31"]
[EventType "swiss"]
[EventCountry "GBR"]
[SourceTitle "playchess.com"]
[Source "ChessBase"]
[SourceQuality "1"]
[TimeControl "5400+30"]

1. d4 Nf6 2. c4 g6 3. Nc3 d5 4. cxd5 Nxd5 5. e4 Nxc3 6. bxc3 c5 7. Nf3 Bg7 8. Rb1 O-O 9. Be2 b6 10. O-O Bb7 11. Qd3 Nd7 12. Bg5 Rc8 13. Qe3 Qc7 14. Bd3 Rfe8 15. Rfd1 e6 16. Rbc1 a6 17. Bh6 b5 18. h4 f5 19. Bxg7 Kxg7 20. c4 b4 21. Bb1 Nf6 22. e5 Ng4 23. Qf4 cxd4 24. Rxd4 Rcd8 25. Rd6 Rxd6 26. exd6 Qc6 27. c5 a5 28. Qd2 e5 29. Bd3 h6 30. Bf1 Rd8 31. Qe2 Rxd6 32. Nxe5 Nxe5 33. cxd6 Qxd6 34. Qb5 Be4 35. Qxa5 Nd3 36. Qc7+ 1-0

[Event "1st 4NCL International U2050"]
[Site "Telford"]
[Date "2018.11.01"]
[Round "3"]
[White "Hughes, Peter"]
[Black "Chen, Daniel Xingyu"]
[Result "1/2-1/2"]
[ECO "A00"]
[WhiteElo "1874"]
[BlackElo "1258"]
[Annotator "NA"]
[PlyCount "30"]
[EventDate "2018.10.31"]
[EventType "swiss"]
[EventCountry "GBR"]
[SourceTitle "playchess.com"]
[Source "ChessBase"]
[SourceQuality "1"]
[TimeControl "5400+30"]

1. d4 Nf6 2. c4 e5 3. dxe5 Ng4 4. Bf4 g5 5. Bg3 Nc6 6. Nf3 Bg7 7. Nc3 Ngxe5 8. Nxe5 Nxe5 9. e3 d6 10. Rc1 Be6 11. b3 Qd7 12. Be2 O-O-O 13. Nb5 a6 14. Nd4 f5 15. O-O Rdf8 1/2-1/2

[Event "1st 4NCL International U2050"]
[Site "Telford"]
[Date "2018.11.01"]
[Round "3"]
[White "Bryant, Richard Be"]
[Black "Gostelow, David W"]
[Result "0-1"]
[ECO "A00"]
[WhiteElo "1856"]
[BlackElo "1892"]
[Annotator "NA"]
[PlyCount "66"]
[EventDate "2018.10.31"]
[EventType "swiss"]
[EventCountry "GBR"]
[SourceTitle "playchess.com"]
[Source "ChessBase"]
[SourceQuality "1"]
[TimeControl "5400+30"]

1. e4 c5 2. Nc3 e6 3. g3 d5 4. Bg2 d4 5. Nce2 Nc6 6. d3 Be7 7. f4 Nh6 8. Nf3 f6 9. h3 Nf7 10. Bd2 a6 11. O-O O-O 12. g4 e5 13. f5 b5 14. Kh2 Ra7 15. h4 Rc7 16. Rc1 c4 17. Qe1 Bb7 18. Qg3 Bb4 19. dxc4 bxc4 20. c3 dxc3 21. Nxc3 Nd4 22. Rcd1 Rd7 23. Rfe1 Nxf3+ 24. Qxf3 Rxd2 25. Rxd2 Qxd2 26. Re2 Qf4+ 27. Qxf4 exf4 28. Kh3 Bxc3 29. bxc3 Ne5 30. Rb2 Bc6 31. Rb6 Rd8 32. Bf1 Bxe4 33. Re6 Bd3 0-1